{"text_format":"1","workbook":"xlsx","n_sheets":7,"sheets":["Forside","1. Etabl. af stald m. malke","2. Etabl. af stald u. malke","3. Etabl stald kalve el. opdræt","4. Renovering af stald m. malke","5. Renovering af stald u. malke","6. Renovering kalve el. opdræt"],"not_rendered":{"charts":0,"images":0,"macros":1,"external_links":0,"defined_names":0,"comments":0,"pivot_tables":0},"unopened":[],"bounds":{"document_bytes":16777216,"sheet_cells":100000,"rows_first":2000,"rows_last":500,"rows_between":2000,"halvings":0,"cell_chars":16384,"cell_head_chars":4096},"cells_cut":0,"cells_raw":0,"read":"whole","date_system":"1900"}

{"sheet":"Forside","index":0,"n_rows":50,"n_cols":15,"rows_kept":50,"cut":false,"hidden":false,"merged":[[12,1,13,2],[6,13,7,20]]}
[null,"Forside"]
[null,"- Denne model har til hensigt at illustrere prioriteringen af \"Modernisering af kvægstalde 2018\" ved udregning af projektets økonomiske effekt"]
[]
[]
[]
[null,null,null,null,null,null,null,null,null,null,null,null,null,"For at modellen kan anvendes skal \"indhold\" aktiveres. Se gul boks øverst på siden ved åbning."]
[null,null,null,null,null,null,null,null,null,null,null,null,null,"Vejledning for brug af beregningseksempler"]
[]
[null,null,null,null,null,null,null,null,null,null,null,null,null,"1. Forside"]
[null,null,null,null,null,null,null,null,null,null,null,null,null,null,"1.1 Hvis der ansøges i indsatsområde 3 eller 6 skal der i de to gule"]
[null,null,"Antallet af husdyrpladser som indgår i dit projekt",null,null,null,"Standardpris","Total Værdi ",null,null,null,null,null,null,"felter indtastes den procentvise fordeling mellem opdræt og "]
[null,null,null,"Malkekøer - opgøres fra antallet af kopladser i fanerne",null,{"$f":"IF('1. Etabl. af stald m. malke'!F61>=1,'1. Etabl. af stald m. malke'!F61,IF('2. Etabl. af stald u. malke'!F49>=1,'2. Etabl. af stald u. malke'!F49,IF(SUM('3. Etabl stald kalve el. opdræt'!F45:F46)>=1,SUM('3. Etabl stald kalve el. opdræt'!F45:F46),IF('4. Renovering af stald m. malke'!F63>=1,'4. Renovering af stald m. malke'!F63,IF('5. Renovering af stald u. malke'!F50>=1,'5. Renovering af stald u. malke'!F50,IF(SUM('6. Renovering kalve el. opdræt'!F45:F46)>=1,SUM('6. Renovering kalve el. opdræt'!F45:F46),0))))))","v":0},4952,{"$f":"G12*F12","v":0},null,null,null,null,null,null,"slagtekalve. Summen af fordelingen skal sammenlagt give 100%."]
[null,"Fordeling af ungdyr",null,"Slagtekalve - %",null,{"$f":"IF('3. Etabl stald kalve el. opdræt'!F45>0,'3. Etabl stald kalve el. opdræt'!F45,'6. Renovering kalve el. opdræt'!F45)","v":0},478,{"$f":"G13*F13","v":0},null,null,null,null,null,null,"1.2 Antal pladser til hhv. malkekøer, opdræt og slagtekalve opgøres"]
[null,null,null,"Opdræt - %",null,{"$f":"IF('3. Etabl stald kalve el. opdræt'!F46>0,'3. Etabl stald kalve el. opdræt'!F46,'6. Renovering kalve el. opdræt'!F46)","v":0},904,0,null,null,null,null,null,null,"automatisk fra det projekt du indtaster i fanerne med indsatsområderne. Du"]
[null,null,null,null,null,{"$f":"IF(AND(SUM(E13:E14)<>1,SUM(E13:E14)<>0),\"FEJL - Fordelingen af ungdyr skal enten være 0 eller 100%\",\"\")","v":""},null,null,null,null,null,null,null,null,"skal derfor ikke indtaste dem på forsiden."]
[null,null,null,null,null,null,null,null,null,null,null,null,null,null,"1.3 Tryk derefter på det Indsatsområde (1-6), der ønskes at søge støtte til."]
[null,null,null,null,null,null,null,null,null,null,null,null,null,null,"1.4 Ved at trykke \"Slet alle indtastninger\" på forsiden, så slettes indtastningen"]
[null,null,"Vælg indsatsområde for at indtaste investeringerne i dit projekt",null,null,null,null,null,null,null,null,null,null,null,"i alle gule felter i alle faner."]
[null,null,null,null,null,null,null,null,null,null,null,null,null,"2. Indsatsområder"]
[null,null,null,null,null,null,null,null,null,null,null,null,null,null,"2.1 Der er obligatoriske investeringer og valgfrie investeringer i hvert indsats-"]
[null,null,null,null,null,null,null,null,null,null,null,null,null,null,"område. Du kan læse mere i vejledningen herom. De valgfrie investeringer er"]
[null,null,null,null,null,null,null,null,null,null,null,null,null,null,"markeret med rødt indtil du indtaster pladser i én af de obligatoriske investe-"]
[null,null,null,null,null,null,null,null,null,null,null,null,null,null,"ringer. Er der flere kategorier du skal vælge en investering fra, kan der ikke"]
[null,null,null,null,null,null,null,null,null,null,null,null,null,null,"udregnes økonomiske effekt af projektet. Dette markeres med rødt i bunden i"]
[null,null,null,null,null,null,null,null,null,null,null,null,null,null,"arket."]
[null,null,null,null,null,null,null,null,null,null,null,null,null,null,"2.2 I kategorien basisstald indsætter du det antal forskellige typer ko- eller "]
[null,null,null,null,null,null,null,null,null,null,null,null,null,null,"ungdyrpladser, som der indgår i projektet. Antallet af pladser udgør grundlaget"]
[null,null,null,null,null,null,null,null,null,null,null,null,null,null,"for beregningen af økonomisk effekt. Det er kun muligt at indtaste ungdyrpladser"]
[null,null,null,null,null,null,null,null,null,null,null,null,null,null,"i indsatsområde 3 og 6, hvis fordelingen på forsiden sammenlagt giver 100%."]
[null,null,null,null,null,null,null,null,null,null,null,null,null,null,"2.3 Udover basisstaldinvesteringer, kan du søge om tilskud til investeringer"]
[null,null,null,null,null,null,null,null,null,null,null,null,null,null,"i kategorien Malkning og mælkeopbevaring og Miljø- og dyrevelfærdstilkøb."]
[null,null,null,null,null,null,null,null,null,null,null,null,null,null,"Den økonomiske værdi øges mellem 0 - 5 % for den del af ansøgningen, som"]
[null,null,null,null,null,null,null,null,null,null,null,null,null,null,"investeringen dækker. Kapaciteten og den økonomiske effekt for hver enkelt"]
[null,null,null,null,null,null,null,null,null,null,null,null,null,null,"teknologi findes i bilag 2 i vejledningen."]
[null,null,null,null,null,null,null,null,null,null,null,null,null,null,"2.4 Det er muligt at se beregningerne der ligger til grund for den opnåede "]
[null,null,null,null,null,null,null,null,null,null,null,null,null,null,"økonomiske effekt af projektet nederst i arket."]
[null,null,null,null,null,null,null,null,null,null,null,null,null,"3. Begrænsninger"]
[null,null,null,null,null,null,null,null,null,null,null,null,null,null,"3.1 Det er kun muligt at tilkøbe eller renovere sygdomsbehandlingsbokse"]
[null,null,null,null,null,null,null,null,null,null,null,null,null,null,"afrundet i forhold 1 til 100. Det betyder at der kan søges tilskud til 1 "]
[null,null,null,null,null,null,null,null,null,null,null,null,null,null,"sygdomsbehandlingsboks for hver 100 ko- eller ungdyrpladser som der søges "]
[null,null,null,null,null,null,null,null,null,null,null,null,null,null,"tilskud til. Ved køb eller renovering af op til 149 pladser, rundes der ned, og "]
[null,null,null,null,null,null,null,null,null,null,null,null,null,null,"der vil kunne søges om tilskud til 1 sygdomsbehandlingboks. Bygges eller"]
[null,null,null,null,null,null,null,null,null,null,null,null,null,null,"renoveres 150 pladser, rundes op, og der vil kunne søges om tilskud til to"]
[null,null,null,null,null,null,null,null,null,null,null,null,null,null,"sygdomsbehandlingsbokse."]
[null,null,null,null,null,null,null,null,null,null,null,null,null,null,"3.2 Prisen for sygdomsovervågning er dynamisk, således at prisen vil være"]
[null,null,null,null,null,null,null,null,null,null,null,null,null,null,"30.000 kr. plus 1.100 kroner pr. transponder. Der kan kun søges om tilskud"]
[null,null,null,null,null,null,null,null,null,null,null,null,null,null,"til denne investering til det antal dyrepladser i projektet."]
[null,null,null,null,null,null,null,null,null,null,null,null,null,null,"3.3 Luftrensning er et tilvalg, men såfremt der søges støtte hertil, så skal der"]
[null,null,null,null,null,null,null,null,null,null,null,null,null,null,"søges om luftrensning til et antal pladser minimum svarende til hvad der er søgt om "]
[null,null,null,null,null,null,null,null,null,null,null,null,null,null,"støtte til, dvs. antallet af ko- eller slagtekalve-/ungdyrspladser."]

{"sheet":"1. Etabl. af stald m. malke","index":1,"n_rows":75,"n_cols":15,"rows_kept":75,"cut":false,"hidden":true,"merged":[[4,4,7,12],[67,6,67,7],[68,6,68,7],[69,6,69,7],[38,1,38,3],[59,5,59,6],[60,5,60,6],[65,6,65,7]]}
[null,null,null,null,"Indsatsområde 1: Etablering af stald med tilhørende malkestald"]
[]
[]
[]
[null,null,null,null,"Vejledning til Indsatsområde 1: Etablering af stald med tilhørende malkestald\nFor at låse øvrige elementer op i ”Basis staldanlæg” og ”Miljø- og dyrevelfærdstilkøb”, skal der indtastes en positiv værdi i enten ”Sengebåse til lakterende køer”, ”Sengebåse til goldkøer” og/eller ”Dybstrøelsesstald, Fællesareal til køer”. Herefter vil alle de gule felter være låst op, og der kan nu indtastes værdier heri. \n\nFor at være berettiget til at søge tilskud i indsatsområde 1 ”Etablering af stald med tilhørende malkestald” skal der ansøges om tilskud til et malkeanlæg. Du kan vælge mellem \"konventionelt malkeanlæg”, ”malkekarussel” eller ”malkerobot”. Øvrige investeringer i kategorien Malkning og mælkeopbevaring er valgfri.\n"]
[]
[]
[]
[]
[]
[]
[]
[]
[null,null,null,null,"Basis staldanlæg"]
[null,null,null,null,"Kategori/element","Pris","Enhed","Angiv Stk.",null,null,null,null,null,null,"Endelig pris til prioritering"]
[null,null,null,null,"Sengebåse til lakterende køer",20035,"Koplads",null,null,null,null,null,null,null,{"$f":"F16*H16","v":0}]
[null,null,null,null,"Dybstrøelsesstald, Fællesareal til lakterende køer",20600,"Koplads",null,null,null,null,null,null,null,{"$f":"F17*H17","v":0}]
[null,null,null,null,"Sengebåse til goldkøer",20836,"Koplads",null,null,null,null,null,null,null,{"$f":"F18*H18","v":0}]
[null,null,null,null,"Fællesbokse til køer/ kælvning",20600,"Koplads",null,null,null,null,null,null,null,0]
[null,null,null,null,"Behandlingsfaciliteter – fælles (ekskl. klovbehandlingsboks)",11955,"Koplads",null,null,null,null,null,null,null,{"$f":"F20*H20","v":0}]
[null,null,null,null,"Enkeltbokse - kælvning",30900,"Koboks",null,null,null,null,null,null,null,{"$f":"F21*H21","v":0}]
[null,null,null,null,"Enkeltbokse - Sygdomsbehandling køer",30900,"Koboks",null,null,null,null,null,null,null,0]
[null,null,null,null,"Ekstra staldkvadratmeter – Opsamlingsplads",2100,"m2",null,null,null,null,null,null,null,0]
[null,null,null,null,"Ekstra staldkvadratmeter – Malkestald",3500,"m2",null,null,null,null,null,null,null,0]
[null,null,null,null,"Ekstra staldkvadratmeter – Servicerum",5000,"m2",null,null,null,null,null,null,null,0]
[null,null,null,null,"Samlet pris for nyt staldanlæg",null,null,null,null,null,null,null,null,null,{"$f":"SUMIF(O16:O25,\"<>Ikke relevant\",O16:O25)","v":0}]
[]
[]
[null,null,null,null,"Malkning og mælkeopbevaring"]
[null,null,null,null,"Kategori/element","Pris","Enhed","Angiv Stk.",null,null,null,null,"Forøgelse i produktion Køer","Forøget værdi Køer(Forøgelse * Værdi)","Endelig pris til prioritering"]
[null,null,null,null,"Konventionelt malkeanlæg med fast exit, hhv. 30° sildeben eller ”side by side”",75000,"Malkeplads",null,null,null,null,null,0,0,{"$f":"F31*H31","v":0}]
[null,null,null,null,"Malkekarrusel",68000,"Malkeplads",null,null,null,null,null,0,0,{"$f":"F32*H32","v":0}]
[null,null,null,null,"Malkerobot",900000,"Stk. ved 65 årskøer",null,null,null,null,null,0,0,{"$f":"F33*H33","v":0}]
[null,null,null,null,"Mælkekøling, isvandsanlæg",1100,"Malkende ko",null,null,null,null,null,0,0,{"$f":"F34*H34","v":0}]
[null,null,null,null,"Mælketank inkl. bufferkapacitet på 25 %",1800,"Malkende ko",null,null,null,null,null,0,0,{"$f":"F35*H35","v":0}]
[null,null,null,null,"Samlet pris for nyt staldanlæg",null,null,null,null,null,null,null,null,null,{"$f":"SUMIF(O31:O35,\"<>Ikke relevant\",O31:O35)","v":0}]
[]
[]
[null,"Elementernes anvendelse",null,null,"Miljø- og dyrevelfærdstilkøb"]
[null,"Malkekøer","Slagtekalve","Opdræt","Kategori/element","Pris","Enhed","Angiv Stk.","Enheder pr. koplads","100 Opnåelse","Procent af malkekøer dækket","Malkekøer dækket","Forøgelse i produktion Køer","Forøget værdi Køer(Forøgelse * Værdi)","Endelig pris til prioritering"]
[null,"X","X","X","Forsuringsanlæg",700000,"Anlæg",null,450,{"$f":"IFERROR($F$61/I41,0)","v":0},{"$f":"IF(J41=0,0,IF((H41/J41)>1,1,(H41/J41)))","v":0},{"$f":"IF($F$61=0,0,K41*$F$61)","v":0},0.05,{"$f":"IF(OR(H41=0,H41=\"\"),0,M41*SUM($M$61)*K41)","v":0},{"$f":"F41*H41","v":0}]
[null,"X",null,"X","Sandvasker",1100000,"Anlæg",null,500,0,0,0,0.05,0,0]
[null,"X","X","X","Ensilageopbevaring pr. m3",275,"m3",null,{"$f":"1/22","v":4.5454545454545456E-2},0,0,0,0.05,0,0]
[null,"X","X","X","Gylleopbevaring pr. m3",115,"m3",null,{"$f":"1/23","v":4.3478260869565216E-2},0,0,0,0,0,0]
[null,"X","X","X","Teltoverdækning af gyllebeholder ",320,"m2 overdækning",null,0.2,0,0,0,0.05,0,0]
[null,null,null,null,"Isolering af tag",175,"m2",null,{"$f":"1/11","v":9.0909090909090912E-2},0,0,0,0.02,0,0]
[null,"X","X","X","Luftrensning",3500,"Plads",null,1,0,0,0,0.02,0,0]
[null,"X","X","X","Gulvudsugning:",2365,"Plads",null,1,0,0,0,0.02,0,0]
[null,"X",null,null,"Klovvasker - Returgangsanlæg",80000,"Stk.",null,{"$f":"F61","v":0},0,0,0,0,0,0]
[null,"X",null,null,"Klovvasker - Montage i malkerobot",20000,"Stk.",null,75,0,0,0,0,0,0]
[null,"X","X","X","Vandrensning - Kapacitet under 7.500 Liter/t",60000,"Anlæg",null,150,0,0,0,2.5000000000000001E-2,0,0]
[null,"X","X","X","Vandrensning - Kapacitet  7.500-15.000 Liter/t",100000,"Anlæg",null,300,0,0,0,2.5000000000000001E-2,0,0]
[null,"X","X","X","Vandrensning - Kapacitet over 15.000 Liter/t",180000,"Anlæg",null,{"$f":"F61","v":0},0,0,0,2.5000000000000001E-2,0,0]
[null,"X",null,null,"Sygdomsovervågning (30.000 kr (grundpris) + 1.100 kr./stk)",{"$f":"IF(H54>0,(30000+(1100*H54))/H54,30000)","v":30000},"Stk.",null,1,0,0,0,2.5000000000000001E-2,0,0]
[null,"X",null,null,"Rengøring af gulve – Drivbom på opsamlingsplads",175000,"Stk.",null,{"$f":"F61","v":0},0,0,0,2.5000000000000001E-2,0,0]
[null,null,null,null,"Samlet pris for nyt staldanlæg",null,null,null,null,null,null,null,{"$f":"SUMIF(H41:H55,\">0\",M41:M55)","v":0},{"$f":"SUM(N41:N55)","v":0},{"$f":"SUMIF(O41:O55,\"<>Ikke relevant\",O41:O55)","v":0}]
[]
[]
[]
[null,null,null,null,null,"Antal \nkopladser",null,"Standardpris",null,null,null,null,"Totalværdi"]
[null,null,null,null,"Malkekøer",{"$f":"SUM(H16:H22)","v":0},null,{"$f":"Forside!G12","v":4952},null,null,null,null,{"$f":"F61*H61","v":0}]
[]
[]
[]
[null,null,null,null,"Total pris for ansøgningen"]
[null,null,null,null,null,null,"Værdier"]
[null,null,null,null,"Basis Staldanlæg",{"$f":"O26","v":0}]
[null,null,null,null,"Miljø- og dyrevelfærdstilkøb",{"$f":"O56","v":0},"Standardværdi",null,null,null,null,null,{"$f":"SUM(M61:M61)","v":0}]
[null,null,null,null,"Malkning og mælkeopbevaring",{"$f":"O36","v":0},"Tilkøb køer",null,null,null,null,null,{"$f":"N56","v":0}]
[null,null,null,null,"Samlet Pris",{"$f":"SUM(F67:F69)","v":0},"Total",null,null,null,null,null,{"$f":"SUM(M68:M69)","v":0}]
[null,null,null,null,"Ansøgt Beløb (20%)",{"$f":"F70/5","v":0}]
[]
[null,null,null,null,"Ansøgningens økonomiske effekt /\nAnsøgningens samlede score:",null,{"$f":"M70/F71","v":{"$error":"#DIV/0!"}}]
[null,null,null,null,null,null,{"$f":"IF(AND(SUM(H31+H32+H33)<=1,SUM(H31+H32+H33)<=0),\"FEJL - Der skal indtastes mindst enten 1 'konventionelt malkeanlæg', 'malkekarussel' eller 'malkerobot' for at være i Indsatsområde 1\",\"\")","v":"FEJL - Der skal indtastes mindst enten 1 'konventionelt malkeanlæg', 'malkekarussel' eller 'malkerobot' for at være i Indsatsområde 1"}]
[null,null,null,null,null,null,{"$f":"IF(AND(SUM(H16+H17)<=1,SUM(H16+H17)<=0),\"FEJL - Der skal indtastes mindst enten 1 'sengebåse til lakterende køer' eller 'dybstråelsesstald, fællesareal for lakterende køer' for at være i Indsatsområde 1\",\"\")","v":"FEJL - Der skal indtastes mindst enten 1 'sengebåse til lakterende køer' eller 'dybstråelsesstald, fællesareal for lakterende køer' for at være i Indsatsområde 1"}]

{"sheet":"2. Etabl. af stald u. malke","index":2,"n_rows":61,"n_cols":15,"rows_kept":61,"cut":false,"hidden":true,"merged":[[53,6,53,7],[54,6,54,7],[55,6,55,7],[56,6,56,7],[47,5,47,6],[48,5,48,6],[13,4,13,14],[28,1,28,3],[28,4,28,14],[52,4,52,8],[4,4,7,7]]}
[null,null,null,null,"Indsatsområde 2: Etablering af stald til malkekøer ekskl. Malkestald"]
[]
[]
[]
[null,null,null,null,"Vejledning til Indsatsområde 2: Etablering af stald til malkekøer ekskl. malkestald\nFor at låse øvrige elementer op i ”Basis staldanlæg” og ”Miljø- og dyrevelfærdstilkøb”, skal der indtastes en positiv værdi i enten ”Sengebåse til lakterende køer”, ”Sengebåse til goldkøer” og/eller ”Dybstrøelsesstald, Fællesareal til køer”. Herefter vil alle de gule felter være låst op, og der kan nu indtastes værdier heri. \n\n\n"]
[]
[]
[]
[]
[]
[]
[]
[]
[null,null,null,null,"Basis staldanlæg"]
[null,null,null,null,"Kategori/element","Pris","Enhed","Angiv Stk.",null,null,null,null,null,null,"Endelig pris til prioritering"]
[null,null,null,null,"Sengebåse til lakterende køer",20035,"Koplads",null,null,null,null,null,null,null,{"$f":"F16*H16","v":0}]
[null,null,null,null,"Dybstrøelsesstald, Fællesareal til lakterende køer",20600,"Koplads",null,null,null,null,null,null,null,{"$f":"F17*H17","v":0}]
[null,null,null,null,"Sengebåse til goldkøer",20836,"Koplads",null,null,null,null,null,null,null,{"$f":"F18*H18","v":0}]
[null,null,null,null,"Fællesbokse til køer/ kælvning",20600,"Koplads",null,null,null,null,null,null,null,0]
[null,null,null,null,"Enkeltbokse - kælvning",30900,"Koboks",null,null,null,null,null,null,null,0]
[null,null,null,null,"Enkeltbokse - Sygdomsbehandling køer",30900,"Koboks",null,null,null,null,null,null,null,{"$f":"F21*H21","v":0}]
[null,null,null,null,"Behandlingsfaciliteter – fælles (ekskl. klovbehandlingsboks)",11955,"Koplads",null,null,null,null,null,null,null,0]
[null,null,null,null,"Ekstra staldkvadratmeter – Opsamlingsplads",2100,"m2",null,null,null,null,null,null,null,0]
[null,null,null,null,"Ekstra staldkvadratmeter – Servicerum",5000,"m2",null,null,null,null,null,null,null,0]
[null,null,null,null,"Samlet pris for nyt staldanlæg",null,null,null,null,null,null,null,null,null,{"$f":"SUMIF(O16:O24,\"<>Ikke relevant\",O16:O24)","v":0}]
[]
[]
[]
[null,"Elementernes anvendelse",null,null,"Miljø- og dyrevelfærdstilkøb"]
[null,"Malkekøer","Slagtekalve","Opdræt","Kategori/element","Pris","Enhed","Angiv Stk.","Enheder pr. koplads","100 Opnåelse","Procent af malkekøer dækket","Malkekøer dækket","Forøgelse i produktion Køer","Forøget værdi Køer(Forøgelse * Værdi)","Endelig pris til prioritering"]
[null,"X","X","X","Forsuringsanlæg",700000,"Anlæg",null,450,{"$f":"IFERROR($F$49/I31,0)","v":0},{"$f":"IF(J31=0,0,IF((H31/J31)>1,1,(H31/J31)))","v":0},{"$f":"IF($F$49=0,0,K31*$F$49)","v":0},0.05,{"$f":"IF(OR(H31=0,H31=\"\"),0,M31*SUM($M$49)*K31)","v":0},{"$f":"F31*H31","v":0}]
[null,"X",null,"X","Sandvasker",1100000,"Anlæg",null,{"$f":"SUM(F49:F49)","v":0},0,0,0,0.05,0,0]
[null,"X","X","X","Ensilageopbevaring pr. m3",275,"m3",null,{"$f":"1/22","v":4.5454545454545456E-2},0,0,0,0.05,0,0]
[null,"X","X","X","Gylleopbevaring pr. m3",115,"m3",null,{"$f":"1/23","v":4.3478260869565216E-2},0,0,0,0,0,0]
[null,"X","X","X","Teltoverdækning af gyllebeholder ",320,"m2 overdækning",null,0.2,0,0,0,0.05,0,0]
[null,null,null,null,"Isolering af tag",175,"m2",null,{"$f":"1/11","v":9.0909090909090912E-2},0,0,0,0.02,0,0]
[null,"X","X","X","Luftrensning",3500,"Plads",null,1,0,0,0,0.02,0,0]
[null,"X","X","X","Gulvudsugning:",2365,"Plads",null,1,0,0,0,0.02,0,0]
[null,"X",null,null,"Klovvasker - Returgangsanlæg",80000,"Stk.",null,{"$f":"F49","v":0},0,0,0,0,0,0]
[null,"X",null,null,"Klovvasker - Montage i malkerobot",20000,"Stk.",null,75,0,0,0,0,0,0]
[null,"X","X","X","Vandrensning - Kapacitet under 7.500 Liter/t",60000,"Anlæg",null,150,0,0,0,2.5000000000000001E-2,0,0]
[null,"X","X","X","Vandrensning - Kapacitet  7500-15.000 Liter/t",100000,"Anlæg",null,300,0,0,0,2.5000000000000001E-2,0,0]
[null,"X","X","X","Vandrensning - Kapacitet over 15.000 Liter/t",180000,"Anlæg",null,{"$f":"F49","v":0},0,0,0,2.5000000000000001E-2,0,0]
[null,"X",null,null,"Sygdomsovervågning (30.000 kr (grundpris) + 1.100 kr./stk)",{"$f":"IF(H44>0,(30000+(1100*H44))/H44,30000)","v":30000},"Stk.",null,1,0,0,0,2.5000000000000001E-2,0,0]
[null,null,null,null,"Samlet pris for nyt staldanlæg",null,null,null,null,null,null,null,{"$f":"SUMIF(H31:H44,\">0\",M31:M44)","v":0},{"$f":"SUM(N31:N44)","v":0},{"$f":"SUMIF(O31:O44,\"<>Ikke relevant\",O31:O44)","v":0}]
[]
[]
[null,null,null,null,null,"Antal kopladser",null,"Standardpris",null,null,null,null,"Totalværdi"]
[null,null,null,null,"Malkekøer",{"$f":"SUM(H16:H22)","v":0},null,{"$f":"Forside!G12","v":4952},null,null,null,null,{"$f":"F49*H49","v":0}]
[]
[]
[]
[null,null,null,null,"Total pris for ansøgningen"]
[null,null,null,null,null,null,"Værdier"]
[null,null,null,null,"Basis Staldanlæg",{"$f":"O25","v":0},"Standardværdi",null,null,null,null,null,{"$f":"SUM(M49:M49)","v":0}]
[null,null,null,null,"Miljø- og dyrevelfærdstilkøb",{"$f":"O45","v":0},"Tilkøb køer",null,null,null,null,null,{"$f":"N45","v":0}]
[null,null,null,null,"Samlet Pris",{"$f":"SUM(F55:F56)","v":0},"Total",null,null,null,null,null,{"$f":"SUM(M55:M56)","v":0}]
[null,null,null,null,"Ansøgt Beløb (20%)",{"$f":"F57/5","v":0}]
[]
[null,null,null,null,"Ansøgningens økonomiske effekt /\nAnsøgningens samlede score:",null,{"$f":"M57/F58","v":{"$error":"#DIV/0!"}}]
[null,null,null,null,null,null,{"$f":"IF(AND(SUM(H16+H17)<=1,SUM(H16+H17)<=0),\"FEJL - Der skal indtastes mindst enten 1 'sengebåse til lakterende køer' eller 'dybstråelsesstald, fællesareal for lakterende køer' for at være i Indsatsområde 2\",\"\")","v":"FEJL - Der skal indtastes mindst enten 1 'sengebåse til lakterende køer' eller 'dybstråelsesstald, fællesareal for lakterende køer' for at være i Indsatsområde 2"}]

{"sheet":"3. Etabl stald kalve el. opdræt","index":3,"n_rows":57,"n_cols":18,"rows_kept":57,"cut":false,"hidden":true,"merged":[[49,6,49,7],[50,6,50,7],[51,6,51,7],[52,6,52,7],[43,5,43,6],[44,5,44,6],[45,5,45,6],[14,4,14,17],[48,4,48,8],[25,1,25,3],[25,4,25,17],[4,4,10,7]]}
[null,null,null,null,"Indsatsområde 3: Etablering af stald til slagtekalve og/eller opdræt af kalve/ungdyr"]
[]
[]
[]
[null,null,null,null,"Vejledning til Indsatsområde 3: Etablering af stald til slagtekalve og/eller opdræt af kalve/ungdyr\nFor at låse øvrige elementer op i ”Basis staldanlæg” og ”Miljø- og dyrevelfærdstilkøb”, skal der indtastes en positiv værdi i enten ”Pladser til kalve 0-3 mdr. i hytter/enkeltbokse og 3-6 mdr. i fællesbokse”, ”Sengebåse til ungdyr\" og/eller ”Dybstrøelsesstald, Fællesareal til ungdyr”. Herefter vil alle de gule felter være låst op, og der kan nu indtastes værdier heri. \n\nHusk at angive den procentvise fordeling mellem opdræt og slagtekalve på forsiden. Der er reserveret 6 mio. kr. til projekter, hvor der alene ansøges til slagtekalveproduktion.\n"]
[]
[]
[]
[]
[]
[]
[]
[]
[]
[null,null,null,null,"Basis staldanlæg"]
[null,null,null,null,"Kategori/element","Pris","Enhed","Angiv Stk.",null,null,null,null,null,null,null,null,null,"Endelig pris til prioritering"]
[null,null,null,null,"Pladser til kalve 0-3 mdr. i hytter/enkeltbokse og 3-6 mdr. i fællesbokse",13285,"Ungdyrplads",null,null,null,null,null,null,null,null,null,null,{"$f":"F17*H17","v":0}]
[null,null,null,null,"Sengebåse til ungdyr",18032,"Ungdyrplads",null,null,null,null,null,null,null,null,null,null,{"$f":"F18*H18","v":0}]
[null,null,null,null,"Dybstrøelsesstald - Fællesareal til ungdyr",15000,"Ungdyrplads",null,null,null,null,null,null,null,null,null,null,0]
[null,null,null,null,"Enkeltbokse - sygdomsbehandling ungdyr",30900,"Ungdyrplads",null,null,null,null,null,null,null,null,null,null,0]
[null,null,null,null,"Ekstra staldkvadratmeter – Servicerum",5000,"m2",null,null,null,null,null,null,null,null,null,null,0]
[null,null,null,null,"Samlet pris for nyt staldanlæg",null,null,null,null,null,null,null,null,null,null,null,null,{"$f":"SUMIF(R17:R21,\"<>Ikke relevant\",R17:R21)","v":0}]
[]
[]
[]
[null,"Elementernes anvendelse",null,null,"Miljø- og dyrevelfærdstilkøb"]
[null,"Malkekøer","Slagtekalve","Opdræt","Kategori/element","Pris","Enhed","Angiv Stk.","Enheder pr. Slagtekalve","Enheder pr. Opdræt","100 Opnåelse","Procent af slagtekalve dækket","Procent af opdræt dækket","Slagtekalve dækket","Opdræt dækket","Forøgelse i produktion ungdyr","Forøget værdi ungdyr(Forøgelse * Værdi)","Endelig pris til prioritering"]
[null,"X","X","X","Forsuringsanlæg",700000,"Anlæg",null,2200,1250,{"$f":"IFERROR($F$45/I28,0)+IFERROR($F$46/J28,0)","v":0},{"$f":"IF(I28=\"Ikke relevant\",0,IF(K28=0,0,IF((H28/K28)>1,1,(H28/K28))))","v":0},{"$f":"IF(K28=0,0,IF((H28/K28)>1,1,(H28/K28)))","v":0},{"$f":"IF($F$45=0,0,L28*$F$45)","v":0},{"$f":"IF($F$46=0,0,M28*$F$46)","v":0},0.05,{"$f":"IF(OR(R28=0,R28=\"\"),0,P28*SUM($P$45)*L28+P28*SUM($P$46)*M28)","v":0},{"$f":"F28*H28","v":0}]
[null,"X",null,"X","Sandvasker",1100000,"Anlæg",null,"Ikke relevant",1000,{"$f":"IFERROR($F$46/J29,0)","v":0},{"$f":"IF(I29=\"Ikke relevant\",0,IF(K29=0,0,IF((H29/K29)>1,1,(H29/K29))))","v":0},0,0,0,0.05,0,{"$f":"F29*H29","v":0}]
[null,"X","X","X","Ensilageopbevaring pr. m3",275,"m3",null,{"$f":"1/3.5","v":0.2857142857142857},{"$f":"1/13","v":7.6923076923076927E-2},{"$f":"IFERROR($F$45/I30,0)+IFERROR($F$46/J30,0)","v":0},{"$f":"IF(I30=\"Ikke relevant\",0,IF(K30=0,0,IF((H30/K30)>1,1,(H30/K30))))","v":0},0,0,0,0.05,0,0]
[null,"X","X","X","Gylleopbevaring pr. m3",115,"m3",null,0.2,0.2,0,0,0,0,0,0,0,0]
[null,"X","X","X","Teltoverdækning af gyllebeholder ",320,"m2 overdækning",null,0.92,0.92,0,0,0,0,0,0.05,0,0]
[null,null,null,null,"Isolering af tag",175,"m2",null,{"$f":"1/9","v":0.1111111111111111},{"$f":"1/9","v":0.1111111111111111},0,0,0,{"$f":"IF($F$45=0,0,L33*$F$45)","v":0},{"$f":"IF($F$46=0,0,M33*$F$46)","v":0},0.02,0,0]
[null,"X","X","X","Luftrensning",3500,"Plads",null,1.25,1.25,0,0,0,0,0,0.02,0,0]
[null,"X","X","X","Gulvudsugning:",2365,"Plads",null,1.25,1.25,0,0,0,0,0,0.02,0,0]
[null,"X","X","X","Vandrensning - Kapacitet under 7.500 Liter/t",60000,"Anlæg",null,600,600,0,0,0,0,0,2.5000000000000001E-2,0,0]
[null,"X","X","X","Vandrensning - Kapacitet  7500-15.000 Liter/t",100000,"Anlæg",null,1200,1200,0,0,0,0,0,2.5000000000000001E-2,0,0]
[null,"X","X","X","Vandrensning - Kapacitet over 15.000 Liter/t",180000,"Anlæg",null,{"$f":"F45","v":0},{"$f":"F46","v":0},0,0,0,0,0,2.5000000000000001E-2,0,0]
[null,"X",null,null,"Sygdomsovervågning (30.000 kr (grundpris) + 1.100 kr./stk)",{"$f":"IF(H39>0,(30000+(1100*H39))/H39,30000)","v":30000},"Stk.",null,1,1,0,0,0,0,0,0,0,{"$f":"F39*H39","v":0}]
[null,null,null,null,"Samlet pris for nyt staldanlæg",null,null,null,null,null,null,null,null,null,null,{"$f":"SUMIF(H28:H39,\">0\",P28:P39)","v":0},{"$f":"SUM(Q28:Q39)","v":0},{"$f":"SUMIF(R28:R39,\"<>Ikke relevant\",R28:R39)","v":0}]
[]
[]
[]
[null,null,null,null,null,"Antal kopladser",null,"Standardpris",null,null,null,null,null,null,null,"Totalværdi"]
[null,null,null,null,"Slagtekalve",{"$f":"SUM(H17:H20)*Forside!E13","v":0},null,{"$f":"Forside!G13","v":478},null,null,null,null,null,null,null,{"$f":"F45*H45","v":0}]
[null,null,null,null,"Opdræt",{"$f":"SUM(H17:H20)*Forside!E14","v":0},null,{"$f":"Forside!G14","v":904},null,null,null,null,null,null,null,{"$f":"F46*H46","v":0}]
[]
[]
[null,null,null,null,"Total pris for ansøgningen"]
[null,null,null,null,null,null,"Værdier"]
[null,null,null,null,"Basis Staldanlæg",{"$f":"R22","v":0},"Standardværdi",null,null,null,null,null,null,null,null,{"$f":"SUM(P45:P46)","v":0}]
[null,null,null,null,"Miljø- og dyrevelfærdstilkøb",{"$f":"R40","v":0},"Tilkøb ungdyr",null,null,null,null,null,null,null,null,{"$f":"Q40","v":0}]
[null,null,null,null,"Samlet Pris",{"$f":"SUM(F51:F52)","v":0},"Total",null,null,null,null,null,null,null,null,{"$f":"SUM(P51:P52)","v":0}]
[null,null,null,null,"Ansøgt Beløb (20%)",{"$f":"F53/5","v":0}]
[]
[null,null,null,null,"Ansøgningens økonomiske effekt /\nAnsøgningens samlede score:",null,{"$f":"P53/F54","v":{"$error":"#DIV/0!"}}]
[null,null,null,null,null,null,{"$f":"IF(AND(SUM(G56)<=1,SUM(G56)<=0),\"FEJL - Der skal indtastes procentvis fordeling af hhv. slagtekalve og opdræt på forsiden for at være i Indsatsområde 3\",\"\")","v":{"$error":"#DIV/0!"}}]

{"sheet":"4. Renovering af stald m. malke","index":4,"n_rows":77,"n_cols":15,"rows_kept":77,"cut":false,"hidden":true,"merged":[[67,6,67,7],[68,6,68,7],[69,6,69,7],[70,6,70,7],[66,4,66,8],[4,4,9,12],[61,5,61,6],[62,5,62,6],[15,4,15,14],[40,1,40,3],[40,4,40,14],[30,4,30,14]]}
[null,null,null,null,"Indsatsområde 4: Totalrenovering af stald til malkekøer med tilhørende malkestald"]
[]
[]
[]
[null,null,null,null,"Vejledning til Indsatsområde 4: Totalrenovering af stald til malkekøer med tilhørende malkestald\nFor at låse øvrige elementer op i ”Basis staldanlæg” og ”Miljø- og dyrevelfærdstilkøb”, skal der indtastes en positiv værdi i enten ”Sengebåse til lakterende køer”, ”Sengebåse til goldkøer” og/eller ”Dybstrøelsesstald, Fællesareal til køer”. Herefter vil alle de gule felter være låst op, og der kan nu indtastes værdier heri. \n\nFor at være berettiget til at søge tilskud i indsatsområde 3 ”Totalrenovering af stald til malkekøer med tilhørende malkestald” skal der ansøges om tilskud til et malkeanllæg. Du kan vælge imellem \"konventionelt malkeanlæg”, ”malkekarussel” og ”malkerobot”. Øvrige investeringer i kategorien Malkning og mælkeopbevaring er valgfri.\n"]
[]
[]
[]
[]
[]
[]
[]
[]
[]
[]
[null,null,null,null,"Basis staldanlæg"]
[null,null,null,null,"Kategori/element","Pris","Enhed","Angiv Stk.",null,null,null,null,null,null,"Endelig pris til prioritering"]
[null,null,null,null,"Sengebåse til lakterende køer",11940,"Koplads",null,null,null,null,null,null,null,{"$f":"F18*H18","v":0}]
[null,null,null,null,"Dybstrøelsesstald, Fællesareal til lakterende køer",11336,"Koplads",null,null,null,null,null,null,null,{"$f":"F19*H19","v":0}]
[null,null,null,null,"Sengebåse til goldkøer",12418,"Koplads",null,null,null,null,null,null,null,{"$f":"F20*H20","v":0}]
[null,null,null,null,"Fællesbokse til køer/ kælvning",11336,"Koplads",null,null,null,null,null,null,null,0]
[null,null,null,null,"Behandlingsfaciliteter – fælles (ekskl. klovbehandlingsboks)",6252,"Koplads",null,null,null,null,null,null,null,{"$f":"F22*H22","v":0}]
[null,null,null,null,"Enkeltbokse - kælvning",17004,"Koboks",null,null,null,null,null,null,null,0]
[null,null,null,null,"Enkeltbokse - Sygdomsbehandling køer",17004,"Koboks",null,null,null,null,null,null,null,0]
[null,null,null,null,"Ekstra staldkvadratmeter – Opsamlingsplads",2074,"m2",null,null,null,null,null,null,null,0]
[null,null,null,null,"Ekstra staldkvadratmeter – Malkestald",3500,"m2",null,null,null,null,null,null,null,0]
[null,null,null,null,"Ekstra staldkvadratmeter – Servicerum",5000,"m2",null,null,null,null,null,null,null,0]
[null,null,null,null,"Samlet pris for Basis Staldanlæg",null,null,null,null,null,null,null,null,null,{"$f":"SUMIF(O18:O27,\"<>Ikke relevant\",O18:O27)","v":0}]
[]
[]
[null,null,null,null,"Malkning og mælkeopbevaring"]
[null,null,null,null,"Kategori/element","Pris","Enhed","Angiv Stk.",null,null,null,null,"Forøgelse i produktion Køer","Forøget værdi Køer(Forøgelse * Værdi)","Endelig pris til prioritering"]
[null,null,null,null,"Konventionelt malkeanlæg med fast exit, hhv. 30° sildeben eller ”side by side”",75000,"Malkeplads",null,null,null,null,null,0,0,{"$f":"F33*H33","v":0}]
[null,null,null,null,"Malkekarrusel",68000,"Malkeplads",null,null,null,null,null,0,0,{"$f":"F34*H34","v":0}]
[null,null,null,null,"Malkerobot",900000,"Stk. ved 65 årskøer",null,null,null,null,null,0,0,{"$f":"F35*H35","v":0}]
[null,null,null,null,"Mælkekøling, isvandsanlæg",1100,"Malkende ko",null,null,null,null,null,0,0,{"$f":"F36*H36","v":0}]
[null,null,null,null,"Mælketank inkl. bufferkapacitet på 25 %",1800,"Malkende ko",null,null,null,null,null,0,0,{"$f":"F37*H37","v":0}]
[null,null,null,null,"Samlet pris for Basis Staldanlæg",null,null,null,null,null,null,null,null,null,{"$f":"SUMIF(O33:O37,\"<>Ikke relevant\",O33:O37)","v":0}]
[]
[]
[null,"Elementernes anvendelse",null,null,"Miljø- og dyrevelfærdstilkøb"]
[null,"Malkekøer","Slagtekalve","Opdræt","Kategori/element","Pris","Enhed","Angiv Stk.","Enheder pr. koplads","100 Opnåelse","Procent af malkekøer dækket","Malkekøer dækket","Forøgelse i produktion Køer","Forøget værdi Køer(Forøgelse * Værdi)","Endelig pris til prioritering"]
[null,"X","X","X","Forsuringsanlæg",700000,"Anlæg",null,450,{"$f":"IFERROR($F$63/I43,0)","v":0},{"$f":"IF(J43=0,0,IF((H43/J43)>1,1,(H43/J43)))","v":0},{"$f":"IF($F$63=0,0,K43*$F$63)","v":0},0.05,{"$f":"IF(OR(H43=0,H43=\"\"),0,M43*SUM($M$63)*K43)","v":0},{"$f":"F43*H43","v":0}]
[null,"X",null,"X","Sandvasker",1100000,"Anlæg",null,{"$f":"SUM(F63:F63)","v":0},0,0,0,0.05,0,0]
[null,"X","X","X","Ensilageopbevaring pr. m3",275,"m3",null,{"$f":"1/22","v":4.5454545454545456E-2},0,0,0,0.05,0,0]
[null,"X","X","X","Gylleopbevaring pr. m3",115,"m3",null,{"$f":"1/23","v":4.3478260869565216E-2},0,0,0,0,0,0]
[null,"X","X","X","Teltoverdækning af gyllebeholder ",320,"m2 overdækning",null,0.2,0,0,0,0.05,0,0]
[null,null,null,null,"Isolering af tag",175,"m2",null,{"$f":"1/11","v":9.0909090909090912E-2},0,0,{"$f":"IF($F$63=0,0,K48*$F$63)","v":0},0.02,0,0]
[null,"X","X","X","Luftrensning",3500,"Plads",null,1,0,0,0,0.02,0,0]
[null,"X","X","X","Gulvudsugning:",2365,"Plads",null,1,0,0,0,0.02,0,0]
[null,"X",null,null,"Klovvasker - Returgangsanlæg",80000,"Stk.",null,{"$f":"F63","v":0},0,0,0,0,0,0]
[null,"X",null,null,"Klovvasker - Montage i malkerobot",20000,"Stk.",null,75,0,0,0,0,0,0]
[null,"X","X","X","Vandrensning - Kapacitet under 7.500 Liter/t",60000,"Anlæg",null,150,0,0,0,2.5000000000000001E-2,0,0]
[null,"X","X","X","Vandrensning - Kapacitet  7500-15.000 Liter/t",100000,"Anlæg",null,300,0,0,0,2.5000000000000001E-2,0,0]
[null,"X","X","X","Vandrensning - Kapacitet over 15.000 Liter/t",180000,"Anlæg",null,{"$f":"F63","v":0},0,0,0,2.5000000000000001E-2,0,0]
[null,"X",null,null,"Sygdomsovervågning (30.000 kr (grundpris) + 1.100 kr./stk)",{"$f":"IF(H56>0,(30000+(1100*H56))/H56,30000)","v":30000},"Stk.",null,1,0,0,0,2.5000000000000001E-2,0,0]
[null,"X",null,null,"Rengøring af gulve – Drivbom på opsamlingsplads",175000,"Stk.",null,{"$f":"F63","v":0},0,0,0,2.5000000000000001E-2,0,0]
[null,null,null,null,"Samlet pris for Basis Staldanlæg",null,null,null,null,null,null,null,{"$f":"SUMIF(H43:H57,\">0\",M43:M57)","v":0},{"$f":"SUM(N43:N57)","v":0},{"$f":"SUMIF(O43:O57,\"<>Ikke relevant\",O43:O57)","v":0}]
[]
[]
[]
[null,null,null,null,null,"Antal kopladser",null,"Standardpris",null,null,null,null,"Totalværdi"]
[null,null,null,null,"Malkekøer",{"$f":"SUM(H18:H24)","v":0},null,{"$f":"Forside!G12","v":4952},null,null,null,null,{"$f":"F63*H63","v":0}]
[]
[]
[]
[null,null,null,null,"Total pris for ansøgningen"]
[null,null,null,null,null,null,"Værdier"]
[null,null,null,null,"Basis Staldanlæg",{"$f":"O28","v":0},"Standardværdi",null,null,null,null,null,{"$f":"SUM(M63:M63)","v":0}]
[null,null,null,null,"Miljø- og dyrevelfærdstilkøb",{"$f":"O58","v":0},"Tilkøb køer",null,null,null,null,null,{"$f":"N58","v":0}]
[null,null,null,null,"Malkning og mælkeopbevaring",{"$f":"O38","v":0},"Total",null,null,null,null,null,{"$f":"SUM(M69:M70)","v":0}]
[null,null,null,null,"Samlet Pris",{"$f":"SUM(F69:F71)","v":0}]
[null,null,null,null,"Ansøgt Beløb (20%)",{"$f":"F72/5","v":0}]
[]
[null,null,null,null,"Ansøgningens økonomiske effekt /\nAnsøgningens samlede score:",null,{"$f":"M71/F73","v":{"$error":"#DIV/0!"}}]
[null,null,null,null,null,null,{"$f":"IF(AND(SUM(H33+H34+H35)<=1,SUM(H33+H34+H35)<=0),\"FEJL - Der skal indtastes mindst enten 1 konventionelt malkeanlæg, malkekarussel eller malkerobot for at være i Indsatsområde 4\",\"\")","v":"FEJL - Der skal indtastes mindst enten 1 konventionelt malkeanlæg, malkekarussel eller malkerobot for at være i Indsatsområde 4"}]
[null,null,null,null,null,null,{"$f":"IF(AND(SUM(H18+H19)<=1,SUM(H18+H19)<=0),\"FEJL - Der skal indtastes mindst enten 1 'sengebåse til lakterende køer' eller 'dybstråelsesstald, fællesareal for lakterende køer' for at være i Indsatsområde 1\",\"\")","v":"FEJL - Der skal indtastes mindst enten 1 'sengebåse til lakterende køer' eller 'dybstråelsesstald, fællesareal for lakterende køer' for at være i Indsatsområde 1"}]

{"sheet":"5. Renovering af stald u. malke","index":5,"n_rows":62,"n_cols":15,"rows_kept":62,"cut":false,"hidden":true,"merged":[[54,6,54,7],[55,6,55,7],[56,6,56,7],[57,6,57,7],[13,4,13,14],[4,4,7,7],[28,1,28,3],[28,4,28,14],[53,4,53,8],[48,5,48,6],[49,5,49,6]]}
[null,null,null,null,"Indsatsområde 5: Totalrenovering af stald til malkekøer, ekskl. malkestald"]
[]
[]
[]
[null,null,null,null,"Vejledning til Indsatsområde 5: Totalrenovering af stald til malkekøer, ekskl. malkestald\nFor at låse øvrige elementer op i ”Basis staldanlæg” og ”Miljø- og dyrevelfærdstilkøb”, skal der indtastes en positiv værdi i enten ”Sengebåse til lakterende køer”, ”Sengebåse til goldkøer” og/eller ”Dybstrøelsesstald, Fællesareal til køer”. Herefter vil alle de gule felter være låst op, og der kan nu indtastes værdier heri. \n\n\n"]
[]
[]
[]
[]
[]
[]
[]
[]
[null,null,null,null,"Basis staldanlæg"]
[null,null,null,null,"Kategori/element","Pris","Enhed","Angiv Stk.",null,null,null,null,null,null,"Endelig pris til prioritering"]
[null,null,null,null,"Sengebåse til lakterende køer",11940,"Koplads",null,null,null,null,null,null,null,{"$f":"F16*H16","v":0}]
[null,null,null,null,"Dybstrøelsesstald, Fællesareal til lakterende køer",11336,"Koplads",null,null,null,null,null,null,null,{"$f":"F17*H17","v":0}]
[null,null,null,null,"Sengebåse til goldkøer",12418,"Koplads",null,null,null,null,null,null,null,{"$f":"F18*H18","v":0}]
[null,null,null,null,"Fællesbokse til køer/kælvning",11336,"Koplads",null,null,null,null,null,null,null,0]
[null,null,null,null,"Enkeltbokse - kælvning",17004,"Koboks",null,null,null,null,null,null,null,0]
[null,null,null,null,"Enkeltbokse - Sygdomsbehandling køer",17004,"Koboks",null,null,null,null,null,null,null,{"$f":"F21*H21","v":0}]
[null,null,null,null,"Behandlingsfaciliteter – fælles (ekskl. klovbehandlingsboks)",6252,"Koplads",null,null,null,null,null,null,null,0]
[null,null,null,null,"Ekstra staldkvadratmeter – Opsamlingsplads",2074,"m2",null,null,null,null,null,null,null,0]
[null,null,null,null,"Ekstra staldkvadratmeter – Servicerum",5000,"m2",null,null,null,null,null,null,null,0]
[null,null,null,null,"Samlet pris for Basis Staldanlæg",null,null,null,null,null,null,null,null,null,{"$f":"SUMIF(O16:O24,\"<>Ikke relevant\",O16:O24)","v":0}]
[]
[]
[]
[null,"Elementernes anvendelse",null,null,"Miljø- og dyrevelfærdstilkøb"]
[null,"Malkekøer","Slagtekalve","Opdræt","Kategori/element","Pris","Enhed","Angiv Stk.","Enheder pr. koplads","100 Opnåelse","Procent af malkekøer dækket","Malkekøer dækket","Forøgelse i produktion Køer","Forøget værdi Køer(Forøgelse * Værdi)","Endelig pris til prioritering"]
[null,"X","X","X","Forsuringsanlæg",700000,"Anlæg",null,450,{"$f":"IFERROR($F$50/I31,0)","v":0},{"$f":"IF(J31=0,0,IF((H31/J31)>1,1,(H31/J31)))","v":0},{"$f":"IF($F$50=0,0,K31*$F$50)","v":0},0.05,{"$f":"IF(OR(H31=0,H31=\"\"),0,M31*SUM($M$50)*K31)","v":0},{"$f":"F31*H31","v":0}]
[null,"X",null,"X","Sandvasker",1100000,"Anlæg",null,{"$f":"SUM(F50:F50)","v":0},0,0,0,0.05,0,0]
[null,"X","X","X","Ensilageopbevaring pr. m3",275,"m3",null,{"$f":"1/22","v":4.5454545454545456E-2},0,0,0,0.05,0,0]
[null,"X","X","X","Gylleopbevaring pr. m3",115,"m3",null,{"$f":"1/23","v":4.3478260869565216E-2},0,0,0,0,0,0]
[null,"X","X","X","Teltoverdækning af gyllebeholder ",320,"m2 overdækning",null,0.2,0,0,0,0.05,0,0]
[null,null,null,null,"Isolering af tag",175,"m2",null,{"$f":"1/11","v":9.0909090909090912E-2},{"$f":"IFERROR($F$50/I36,0)","v":0},{"$f":"IF(J36=0,0,IF((H36/J36)>1,1,(H36/J36)))","v":0},{"$f":"IF($F$50=0,0,K36*$F$50)","v":0},0.02,{"$f":"IF(OR(H36=0,H36=\"\"),0,M36*SUM($M$50)*K36)","v":0},0]
[null,"X","X","X","Luftrensning",3500,"Plads",null,1,0,0,0,0.02,0,0]
[null,"X","X","X","Gulvudsugning:",2365,"Plads",null,1,0,0,0,0.02,0,0]
[null,"X",null,null,"Klovvasker - Returgangsanlæg",80000,"Stk.",null,{"$f":"F50","v":0},0,0,0,0,0,0]
[null,"X",null,null,"Klovvasker - Montage i malkerobot",20000,"Stk.",null,75,0,0,0,0,0,0]
[null,"X","X","X","Vandrensning - Kapacitet under 7.500 Liter/t",60000,"Anlæg",null,150,0,0,0,2.5000000000000001E-2,0,0]
[null,"X","X","X","Vandrensning - Kapacitet  7500-15.000 Liter/t",100000,"Anlæg",null,300,0,0,0,2.5000000000000001E-2,0,0]
[null,"X","X","X","Vandrensning - Kapacitet over 15.000 Liter/t",180000,"Anlæg",null,{"$f":"F50","v":0},0,0,0,2.5000000000000001E-2,0,0]
[null,"X",null,null,"Sygdomsovervågning (30.000 kr (grundpris) + 1.100 kr./stk)",{"$f":"IF(H44>0,(30000+(1100*H44))/H44,30000)","v":30000},"Stk.",null,1,0,0,0,2.5000000000000001E-2,0,0]
[null,null,null,null,"Samlet pris for Basis Staldanlæg",null,null,null,null,null,null,null,{"$f":"SUMIF(H31:H44,\">0\",M31:M44)","v":0},{"$f":"SUM(N31:N44)","v":0},{"$f":"SUMIF(O31:O44,\"<>Ikke relevant\",O31:O44)","v":0}]
[]
[]
[]
[null,null,null,null,null,"Antal kopladser",null,"Standardpris",null,null,null,null,"Totalværdi"]
[null,null,null,null,"Malkekøer",{"$f":"SUM(H16:H22)","v":0},null,{"$f":"Forside!G12","v":4952},null,null,null,null,{"$f":"F50*H50","v":0}]
[]
[]
[]
[null,null,null,null,"Total pris for ansøgningen"]
[null,null,null,null,null,null,"Værdier"]
[null,null,null,null,"Basis Staldanlæg",{"$f":"O25","v":0},"Standardværdi",null,null,null,null,null,{"$f":"SUM(M50:M50)","v":0}]
[null,null,null,null,"Miljø- og dyrevelfærdstilkøb",{"$f":"O45","v":0},"Tilkøb køer",null,null,null,null,null,{"$f":"N45","v":0}]
[null,null,null,null,"Samlet Pris",{"$f":"SUM(F56:F57)","v":0},"Total",null,null,null,null,null,{"$f":"SUM(M56:M57)","v":0}]
[null,null,null,null,"Ansøgt Beløb (20%)",{"$f":"F58/5","v":0}]
[]
[null,null,null,null,"Ansøgningens økonomiske effekt /\nAnsøgningens samlede score:",null,{"$f":"M58/F59","v":{"$error":"#DIV/0!"}}]
[null,null,null,null,null,null,{"$f":"IF(AND(SUM(H16+H17)<=1,SUM(H16+H17)<=0),\"FEJL - Der skal indtastes mindst enten 1 'sengebåse til lakterende køer' eller 'dybstråelsesstald, fællesareal for lakterende køer' for at være i Indsatsområde 2\",\"\")","v":"FEJL - Der skal indtastes mindst enten 1 'sengebåse til lakterende køer' eller 'dybstråelsesstald, fællesareal for lakterende køer' for at være i Indsatsområde 2"}]

{"sheet":"6. Renovering kalve el. opdræt","index":6,"n_rows":57,"n_cols":18,"rows_kept":57,"cut":false,"hidden":true,"merged":[[49,6,49,7],[50,6,50,7],[51,6,51,7],[52,6,52,7],[43,5,43,6],[44,5,44,6],[45,5,45,6],[14,4,14,17],[25,1,25,3],[25,4,25,17],[48,4,48,7],[4,4,10,7]]}
[null,null,null,null,"Indsatsområde 6: Totalrenovering af stald til slagtekalve og/eller opdræt af kalve/ungdyr"]
[]
[]
[]
[null,null,null,null,"Vejledning til Indsatsområde 6: Totalrenovering af stald til slagtekalve og/eller opdræt af kalve/ungdyr\nFor at låse øvrige elementer op i ”Basis staldanlæg” og ”Miljø- og dyrevelfærdstilkøb”, skal der indtastes en positiv værdi i enten ”Pladser til kalve 0-3 mdr. i hytter/enkeltbokse og 3-6 mdr. i fællesbokse”, ”Sengebåse til ungdyr\" og/eller ”Dybstrøelsesstald, Fællesareal til ungdyr”. Herefter vil alle de gule felter være låst op, og der kan nu indtastes værdier heri. \n\nHusk at angive den procentvise fordeling mellem opdræt og slagtekalve på forsiden. Der er reserveret 5 mio. kr. til projekter hvor der alene ansøges til slagtekalveproduktion.\n"]
[]
[]
[]
[]
[]
[]
[]
[]
[]
[null,null,null,null,"Basis staldanlæg"]
[null,null,null,null,"Kategori/element","Pris","Enhed","Angiv Stk.",null,null,null,null,null,null,null,null,null,"Endelig pris til prioritering"]
[null,null,null,null,"Pladser til kalve 0-3 mdr. i hytter/enkeltbokse og 3-6 mdr. i fællesbokse",7307,"Ungdyrplads",null,null,null,null,null,null,null,null,null,null,{"$f":"F17*H17","v":0}]
[null,null,null,null,"Sengebåse til ungdyr",10746,"Ungdyrplads",null,null,null,null,null,null,null,null,null,null,{"$f":"F18*H18","v":0}]
[null,null,null,null,"Dybstrøelsesstald - Fællesareal til ungdyr",10202,"Ungdyrplads",null,null,null,null,null,null,null,null,null,null,0]
[null,null,null,null,"Enkeltbokse - Sygdomsbehandling ungdyr",17004,"Ungdyrplads",null,null,null,null,null,null,null,null,null,null,0]
[null,null,null,null,"Ekstra staldkvadratmeter – Servicerum",5000,"m2",null,null,null,null,null,null,null,null,null,null,0]
[null,null,null,null,"Samlet pris for Basis Staldanlæg",null,null,null,null,null,null,null,null,null,null,null,null,{"$f":"SUMIF(R17:R21,\"<>Ikke relevant\",R17:R21)","v":0}]
[]
[]
[]
[null,"Elementernes anvendelse",null,null,"Miljø- og dyrevelfærdstilkøb"]
[null,"Malkekøer","Slagtekalve","Opdræt","Kategori/element","Pris","Enhed","Angiv Stk.","Enheder pr. Slagtekalve","Enheder pr. Opdræt","100 Opnåelse","Procent af slagtekalve dækket","Procent af opdræt dækket","Slagtekalve dækket","Opdræt dækket","Forøgelse i produktion ungdyr","Forøget værdi ungdyr(Forøgelse * Værdi)","Endelig pris til prioritering"]
[null,"X","X","X","Forsuringsanlæg",700000,"Anlæg",null,2200,1250,{"$f":"IFERROR($F$45/I28,0)+IFERROR($F$46/J28,0)","v":0},{"$f":"IF(I28=\"Ikke relevant\",0,IF(K28=0,0,IF((H28/K28)>1,1,(H28/K28))))","v":0},{"$f":"IF(J28=\"Ikke relevant\",0,IF(K28=0,0,IF((H28/K28)>1,1,(H28/K28))))","v":0},{"$f":"IF($F$45=0,0,L28*$F$45)","v":0},{"$f":"IF($F$46=0,0,M28*$F$46)","v":0},0.05,{"$f":"IF(OR(R28=0,R28=\"\"),0,P28*SUM($P$45)*L28+P28*SUM($P$46)*M28)","v":0},{"$f":"F28*H28","v":0}]
[null,"X",null,"X","Sandvasker",1100000,"Anlæg",null,"Ikke relevant",1000,0,{"$f":"IF(I29=\"Ikke relevant\",0,IF(K29=0,0,IF((H29/K29)>1,1,(H29/K29))))","v":0},{"$f":"IF(J29=\"Ikke relevant\",0,IF(K29=0,0,IF((H29/K29)>1,1,(H29/K29))))","v":0},0,0,0.05,0,{"$f":"F29*H29","v":0}]
[null,"X","X","X","Ensilageopbevaring pr. m3",275,"m3",null,{"$f":"1/3.5","v":0.2857142857142857},{"$f":"1/13","v":7.6923076923076927E-2},0,0,0,0,0,0.05,0,0]
[null,"X","X","X","Gylleopbevaring pr. m3",115,"m3",null,0.2,0.2,0,0,0,0,0,0,0,0]
[null,"X","X","X","Teltoverdækning af gyllebeholder ",320,"m2 overdækning",null,0.92,0.92,0,0,0,0,0,0.05,0,0]
[null,null,null,null,"Isolering af tag",175,"m2",null,{"$f":"1/9","v":0.1111111111111111},{"$f":"1/9","v":0.1111111111111111},{"$f":"IFERROR($F$45/I33,0)+IFERROR($F$46/J33,0)","v":0},{"$f":"IF(I33=\"Ikke relevant\",0,IF(K33=0,0,IF((H33/K33)>1,1,(H33/K33))))","v":0},{"$f":"IF(J33=\"Ikke relevant\",0,IF(K33=0,0,IF((H33/K33)>1,1,(H33/K33))))","v":0},{"$f":"IF($F$45=0,0,L33*$F$45)","v":0},{"$f":"IF($F$46=0,0,M33*$F$46)","v":0},0.02,{"$f":"IF(OR(R33=0,R33=\"\"),0,P33*SUM($P$45)*L33+P33*SUM($P$46)*M33)","v":0},0]
[null,"X","X","X","Luftrensning",3500,"Ko",null,1.25,1.25,0,0,0,0,0,0.02,0,0]
[null,"X","X","X","Gulvudsugning:",2365,"plads",null,1.25,1.25,0,0,0,0,0,0.02,0,0]
[null,"X","X","X","Vandrensning - Kapacitet under 7.500 Liter/t",60000,"Anlæg",null,600,600,0,0,0,0,0,2.5000000000000001E-2,0,0]
[null,"X","X","X","Vandrensning - Kapacitet  7500-15.000 Liter/t",100000,"Anlæg",null,1200,1200,0,0,0,0,0,2.5000000000000001E-2,0,0]
[null,"X","X","X","Vandrensning - Kapacitet over 15.000 Liter/t",180000,"Anlæg",null,{"$f":"F45","v":0},{"$f":"F46","v":0},0,0,0,0,0,2.5000000000000001E-2,0,0]
[null,"X",null,null,"Sygdomsovervågning (30.000 kr (grundpris) + 1.100 kr./stk)",{"$f":"IF(H39>0,(30000+(1100*H39))/H39,30000)","v":30000},"Stk.",null,1,1,0,0,0,0,0,0,0,0]
[null,null,null,null,"Samlet pris for Basis Staldanlæg",null,null,null,null,null,null,null,null,null,null,{"$f":"SUMIF(H28:H39,\">0\",P28:P39)","v":0},{"$f":"SUM(Q28:Q39)","v":0},{"$f":"SUMIF(R28:R39,\"<>Ikke relevant\",R28:R39)","v":0}]
[]
[]
[]
[null,null,null,null,null,"Antal kopladser",null,"Standardpris",null,null,null,null,null,null,null,"Totalværdi"]
[null,null,null,null,"Slagtekalve",{"$f":"SUM(H17:H20)*Forside!E13","v":0},null,{"$f":"Forside!G13","v":478},null,null,null,null,null,null,null,{"$f":"F45*H45","v":0}]
[null,null,null,null,"Opdræt",{"$f":"SUM(H17:H20)*Forside!E14","v":0},null,{"$f":"Forside!G14","v":904},null,null,null,null,null,null,null,{"$f":"F46*H46","v":0}]
[]
[]
[null,null,null,null,"Total pris for ansøgningen"]
[null,null,null,null,null,null,"Værdier"]
[null,null,null,null,"Basis Staldanlæg",{"$f":"R22","v":0},"Standardværdi",null,null,null,null,null,null,null,null,{"$f":"SUM(P45:P46)","v":0}]
[null,null,null,null,"Miljø- og dyrevelfærdstilkøb",{"$f":"R40","v":0},"Tilkøb ungdyr",null,null,null,null,null,null,null,null,{"$f":"Q40","v":0}]
[null,null,null,null,"Samlet Pris",{"$f":"SUM(F51:F52)","v":0},"Total",null,null,null,null,null,null,null,null,{"$f":"SUM(P51:P52)","v":0}]
[null,null,null,null,"Ansøgt Beløb (20%)",{"$f":"F53/5","v":0}]
[]
[null,null,null,null,"Ansøgningens økonomiske effekt /\nAnsøgningens samlede score:",null,{"$f":"P53/F54","v":{"$error":"#DIV/0!"}}]
[null,null,null,null,null,null,{"$f":"IF(AND(SUM(G56)<=1,SUM(G56)<=0),\"FEJL - Der skal indtastes procentvis fordeling af hhv. slagtekalve og opdræt på forsiden for at være i Indsatsområde 3\",\"\")","v":{"$error":"#DIV/0!"}}]